Workbook

Sheet Sheet1
B2: Z180 Serial (ASCI) Baud Rates by Clock Rate
C4: CPU Clock PHI (MHz)
C5: 6.144 | D5: 7.3728 | E5: 9.216 | F5: 12.288 | G5: 14.7456 | H5: 18.432 | I5: 24.576 | J5: =G5*2 -> 29.4912 | K5: 36.864
A6: Z180 ASCI Divisors | B6: 122880 | C6: =(C$5*1000000)/$B6 -> 50 | D6: 60 | E6: 75 | F6: 100 | G6: 120 | H6: 150 | I6: 200 | J6: 240 | K6: 300 | L6: Serial Port Baud Rate
B7: 61440 | C7: 100 | D7: 120 | E7: 150 | F7: 200 | G7: 240 | H7: 300 | I7: 400 | J7: 480 | K7: 600
B8: 40960 | C8: 150 | D8: 180 | E8: 225 | F8: 300 | G8: 360 | H8: 450 | I8: 600 | J8: 720 | K8: 900
B9: 30720 | C9: 200 | D9: 240 | E9: 300 | F9: 400 | G9: 480 | H9: 600 | I9: 800 | J9: 960 | K9: 1200
B10: 20480 | C10: 300 | D10: 360 | E10: 450 | F10: 600 | G10: 720 | H10: 900 | I10: 1200 | J10: 1440 | K10: 1800
B11: 15360 | C11: 400 | D11: 480 | E11: 600 | F11: 800 | G11: 960 | H11: 1200 | I11: 1600 | J11: 1920 | K11: 2400
B12: 10240 | C12: 600 | D12: 720 | E12: 900 | F12: 1200 | G12: 1440 | H12: 1800 | I12: 2400 | J12: 2880 | K12: 3600
B13: 7680 | C13: 800 | D13: 960 | E13: 1200 | F13: 1600 | G13: 1920 | H13: 2400 | I13: 3200 | J13: 3840 | K13: 4800
B14: 5120 | C14: 1200 | D14: 1440 | E14: 1800 | F14: 2400 | G14: 2880 | H14: 3600 | I14: 4800 | J14: 5760 | K14: 7200
B15: 3840 | C15: 1600 | D15: 1920 | E15: 2400 | F15: 3200 | G15: 3840 | H15: 4800 | I15: 6400 | J15: 7680 | K15: 9600
B16: 2560 | C16: =(C$5*1000000)/$B16 -> 2400 | D16: 2880 | E16: 3600 | F16: 4800 | G16: 5760 | H16: 7200 | I16: 9600 | J16: 11520 | K16: 14400
B17: 1920 | C17: 3200 | D17: 3840 | E17: 4800 | F17: 6400 | G17: 7680 | H17: 9600 | I17: 12800 | J17: 15360 | K17: 19200
B18: 1280 | C18: 4800 | D18: 5760 | E18: 7200 | F18: 9600 | G18: 11520 | H18: 14400 | I18: 19200 | J18: 23040 | K18: 28800
B19: 960 | C19: 6400 | D19: 7680 | E19: 9600 | F19: 12800 | G19: 15360 | H19: 19200 | I19: 25600 | J19: 30720 | K19: 38400
B20: 640 | C20: 9600 | D20: 11520 | E20: 14400 | F20: 19200 | G20: 23040 | H20: 28800 | I20: 38400 | J20: 46080 | K20: 57600
B21: 480 | C21: 12800 | D21: 15360 | E21: 19200 | F21: 25600 | G21: 30720 | H21: 38400 | I21: 51200 | J21: 61440 | K21: 76800
B22: 320 | C22: 19200 | D22: 23040 | E22: 28800 | F22: 38400 | G22: 46080 | H22: 57600 | I22: 76800 | J22: 92160 | K22: 115200
B23: 160 | C23: 38400 | D23: 46080 | E23: 57600 | F23: 76800 | G23: 92160 | H23: 115200 | I23: 153600 | J23: 184320 | K23: 230400
B25: ASCI Baud = CPU Clock (PHI) / ASCI Divisor
B27: Z180 Serial (ASCI) Programming (CNTLB Values)
B29: Prescale (PS) | D29: Divide Ratio (DR) | F29: Speed Select (SS) | H29: CNTLB (--P-DSSS) | K29: Final
B30: Value | C30: Divisor | D30: Value | E30: Divisor | F30: Value | G30: Divisor | H30: Decimal | I30: Hex | J30: Binary | K30: Divisor
B31: 0 | C31: 10 | D31: 0 | E31: 16 | F31: 0 | G31: 1 | H31: =(B31*32)+(D31*8)+F31 -> 0 | I31: =DEC2HEX(H31,2) -> 00 | J31: =DEC2BIN(H31,8) -> 00000000 | K31: =C31*E31*G31 -> 160
B32: 0 | C32: 10 | D32: 0 | E32: 16 | F32: 1 | G32: 2 | H32: =(B32*32)+(D32*8)+F32 -> 1 | I32: =DEC2HEX(H32,2) -> 01 | J32: =DEC2BIN(H32,8) -> 00000001 | K32: =C32*E32*G32 -> 320
B33: 0 | C33: 10 | D33: 0 | E33: 16 | F33: 2 | G33: 4 | H33: =(B33*32)+(D33*8)+F33 -> 2 | I33: 02 | J33: 00000010 | K33: =C33*E33*G33 -> 640
B34: 0 | C34: 10 | D34: 0 | E34: 16 | F34: 3 | G34: 8 | H34: =(B34*32)+(D34*8)+F34 -> 3 | I34: 03 | J34: 00000011 | K34: =C34*E34*G34 -> 1280
B35: 0 | C35: 10 | D35: 0 | E35: 16 | F35: 4 | G35: 16 | H35: =(B35*32)+(D35*8)+F35 -> 4 | I35: 04 | J35: 00000100 | K35: =C35*E35*G35 -> 2560
B36: 0 | C36: 10 | D36: 0 | E36: 16 | F36: 5 | G36: 32 | H36: =(B36*32)+(D36*8)+F36 -> 5 | I36: 05 | J36: 00000101 | K36: =C36*E36*G36 -> 5120
B37: 0 | C37: 10 | D37: 0 | E37: 16 | F37: 6 | G37: 64 | H37: =(B37*32)+(D37*8)+F37 -> 6 | I37: 06 | J37: 00000110 | K37: =C37*E37*G37 -> 10240
B38: 0 | C38: 10 | D38: 1 | E38: 64 | F38: 0 | G38: 1 | H38: =(B38*32)+(D38*8)+F38 -> 8 | I38: 08 | J38: 00001000 | K38: =C38*E38*G38 -> 640
B39: 0 | C39: 10 | D39: 1 | E39: 64 | F39: 1 | G39: 2 | H39: =(B39*32)+(D39*8)+F39 -> 9 | I39: 09 | J39: 00001001 | K39: =C39*E39*G39 -> 1280
B40: 0 | C40: 10 | D40: 1 | E40: 64 | F40: 2 | G40: 4 | H40: =(B40*32)+(D40*8)+F40 -> 10 | I40: 0A | J40: 00001010 | K40: =C40*E40*G40 -> 2560
B41: 0 | C41: 10 | D41: 1 | E41: 64 | F41: 3 | G41: 8 | H41: =(B41*32)+(D41*8)+F41 -> 11 | I41: 0B | J41: 00001011 | K41: =C41*E41*G41 -> 5120
B42: 0 | C42: 10 | D42: 1 | E42: 64 | F42: 4 | G42: 16 | H42: =(B42*32)+(D42*8)+F42 -> 12 | I42: 0C | J42: 00001100 | K42: =C42*E42*G42 -> 10240
B43: 0 | C43: 10 | D43: 1 | E43: 64 | F43: 5 | G43: 32 | H43: =(B43*32)+(D43*8)+F43 -> 13 | I43: 0D | J43: 00001101 | K43: =C43*E43*G43 -> 20480
B44: 0 | C44: 10 | D44: 1 | E44: 64 | F44: 6 | G44: 64 | H44: =(B44*32)+(D44*8)+F44 -> 14 | I44: 0E | J44: 00001110 | K44: =C44*E44*G44 -> 40960
B45: 1 | C45: 30 | D45: 0 | E45: 16 | F45: 0 | G45: 1 | H45: =(B45*32)+(D45*8)+F45 -> 32 | I45: 20 | J45: 00100000 | K45: =C45*E45*G45 -> 480
B46: 1 | C46: 30 | D46: 0 | E46: 16 | F46: 1 | G46: 2 | H46: =(B46*32)+(D46*8)+F46 -> 33 | I46: 21 | J46: 00100001 | K46: =C46*E46*G46 -> 960
B47: 1 | C47: 30 | D47: 0 | E47: 16 | F47: 2 | G47: 4 | H47: =(B47*32)+(D47*8)+F47 -> 34 | I47: 22 | J47: 00100010 | K47: =C47*E47*G47 -> 1920
B48: 1 | C48: 30 | D48: 0 | E48: 16 | F48: 3 | G48: 8 | H48: =(B48*32)+(D48*8)+F48 -> 35 | I48: 23 | J48: 00100011 | K48: =C48*E48*G48 -> 3840
B49: 1 | C49: 30 | D49: 0 | E49: 16 | F49: 4 | G49: 16 | H49: =(B49*32)+(D49*8)+F49 -> 36 | I49: 24 | J49: 00100100 | K49: =C49*E49*G49 -> 7680
B50: 1 | C50: 30 | D50: 0 | E50: 16 | F50: 5 | G50: 32 | H50: =(B50*32)+(D50*8)+F50 -> 37 | I50: 25 | J50: 00100101 | K50: =C50*E50*G50 -> 15360
B51: 1 | C51: 30 | D51: 0 | E51: 16 | F51: 6 | G51: 64 | H51: =(B51*32)+(D51*8)+F51 -> 38 | I51: 26 | J51: 00100110 | K51: =C51*E51*G51 -> 30720
B52: 1 | C52: 30 | D52: 1 | E52: 64 | F52: 0 | G52: 1 | H52: =(B52*32)+(D52*8)+F52 -> 40 | I52: 28 | J52: 00101000 | K52: =C52*E52*G52 -> 1920
B53: 1 | C53: 30 | D53: 1 | E53: 64 | F53: 1 | G53: 2 | H53: =(B53*32)+(D53*8)+F53 -> 41 | I53: 29 | J53: 00101001 | K53: =C53*E53*G53 -> 3840
B54: 1 | C54: 30 | D54: 1 | E54: 64 | F54: 2 | G54: 4 | H54: =(B54*32)+(D54*8)+F54 -> 42 | I54: 2A | J54: 00101010 | K54: =C54*E54*G54 -> 7680
B55: 1 | C55: 30 | D55: 1 | E55: 64 | F55: 3 | G55: 8 | H55: =(B55*32)+(D55*8)+F55 -> 43 | I55: 2B | J55: 00101011 | K55: =C55*E55*G55 -> 15360
B56: 1 | C56: 30 | D56: 1 | E56: 64 | F56: 4 | G56: 16 | H56: =(B56*32)+(D56*8)+F56 -> 44 | I56: 2C | J56: 00101100 | K56: =C56*E56*G56 -> 30720
B57: 1 | C57: 30 | D57: 1 | E57: 64 | F57: 5 | G57: 32 | H57: =(B57*32)+(D57*8)+F57 -> 45 | I57: 2D | J57: 00101101 | K57: =C57*E57*G57 -> 61440
B58: 1 | C58: 30 | D58: 1 | E58: 64 | F58: 6 | G58: 64 | H58: =(B58*32)+(D58*8)+F58 -> 46 | I58: 2E | J58: 00101110 | K58: =C58*E58*G58 -> 122880
